fUSD/lending_fUSD_20250119
["ID","MTS","AMOUNT","RATE_DAILY","PERIOD"]
[349527517,1737281432887,-500.0,0.000188,2]
[349527519,1737281432896,-925.0,0.000188,2]
[349527521,1737281432906,-7752.10639396,0.000188,3]
[349527522,1737281432915,-152.0,0.00018803,3]
[349527524,1737281432924,-274.4683774,0.00018831,2]
[349527527,1737281432934,-4179.51,0.00018917,2]
[349527528,1737281432943,-3894.0,0.00018927,2]
[349527530,1737281432953,-150.0,0.00018927,2]
[349527532,1737281432962,-3731.93241852,0.00018944,2]
[349527534,1737281432972,-200.0,0.00018965,2]
[349527536,1737281432981,-2000.0,0.00018965,2]
[349527538,1737281432992,-200.0,0.00018965,2]
[349527540,1737281433001,-1095.8,0.00018975,2]
[349527542,1737281433010,-4179.51,0.00018988,2]
[349527545,1737281433023,-182.45405099,0.00018997,2]
[349527546,1737281433032,-199503.51229929,0.00018998,4]
[349527548,1737281433042,-1458.63923396,0.00019,2]
[349527550,1737281433052,-9727.49932937,0.00019,2]
[349527553,1737281433061,-234.27872059,0.00019,2]
[349527554,1737281433071,-650.0,0.00019,2]
[349527556,1737281433081,-150.0,0.00019,2]
[349527558,1737281433090,-150.0,0.00019,2]
[349527560,1737281433100,-274.4683774,0.00019072,2]
[349527562,1737281433109,-958.59625342,0.00019078,2]
[349527564,1737281433119,-55555.0,0.00019078,2]
[349527566,1737281433128,-11885.13,0.00019151,2]
[349527568,1737281433141,-200.0,0.00019154,2]
[349527570,1737281433152,-2000.0,0.00019154,2]
[349527572,1737281433162,-200.0,0.00019154,2]
[349527574,1737281433172,-178.16255007,0.00019168,2]
[349527575,1737281433182,-306.84,0.00019168,2]
[349527577,1737281433192,-498.83451784,0.00019173,2]
[349527578,1737281433203,-500.0,0.00019173,2]
[349527580,1737281433213,-4502.65876282,0.00019173,7]
[349527582,1737281433223,-52066.82592192,0.00019178,7]
[349527584,1737281433237,-4688.48983725,0.00019178,7]
[349527586,1737281433249,-3714.41819393,0.00019178,7]
[349527587,1737281433259,-43358.9968029,0.00019178,7]
[349527589,1737281433269,-19000.0,0.00019178,7]
[349527590,1737281433279,-503.07364833,0.00019178,2]
[349527592,1737281433289,-502.47180569,0.00019178,2]
[349527594,1737281433298,-500.0,0.00019178,2]
[349527595,1737281433308,-500.0,0.00019178,2]
[349527597,1737281433317,-569.8257689,0.00019178,2]
[349527599,1737281433327,-500.0,0.00019178,2]
[349527600,1737281433336,-500.0,0.00019178,2]
[349527602,1737281433346,-500.0,0.00019178,2]
[349527603,1737281433355,-500.0,0.00019178,2]
[349527605,1737281433364,-461.92384599,0.00019178,2]
[349527607,1737281433375,-500.0,0.00019178,2]
[349527609,1737281433385,-505.02535108,0.00019178,2]
[349527610,1737281433394,-500.0,0.00019178,2]
[349527612,1737281433404,-504.11152444,0.00019178,2]
[349527614,1737281433414,-500.0,0.00019178,2]
[349527615,1737281433423,-500.0,0.00019178,2]
[349527617,1737281433433,-339.04986337,0.00019178,2]
[349527619,1737281433442,-500.0,0.00019178,2]
[349527620,1737281433451,-212.64191615,0.00019178,2]
[349527622,1737281433461,-500.0,0.00019178,2]
[349527624,1737281433471,-500.0,0.00019178,2]
[349527625,1737281433480,-505.72124615,0.00019178,2]
[349527627,1737281433490,-505.83733906,0.00019178,2]
[349527629,1737281433499,-500.93697635,0.00019178,2]
[349527631,1737281433509,-504.88408341,0.00019178,2]
[349527632,1737281433518,-500.0,0.00019178,2]
[349527634,1737281433527,-500.0,0.00019178,2]
[349527636,1737281433537,-500.0,0.00019178,2]
[349527637,1737281433549,-500.0,0.00019178,2]
[349527639,1737281433558,-500.61741987,0.00019178,2]
[349527641,1737281433567,-500.44660523,0.00019178,2]
[349527643,1737281433577,-500.0,0.00019178,2]
[349527644,1737281433587,-500.0,0.00019178,2]
[349527646,1737281433596,-500.0,0.00019178,2]
[349527648,1737281433605,-500.0,0.00019178,2]
[349527650,1737281433614,-500.0,0.00019178,2]
[349527652,1737281433625,-500.0,0.00019178,2]
[349527653,1737281433637,-500.0,0.00019178,2]
[349527655,1737281433647,-566.80051944,0.00019178,2]
[349527657,1737281433657,-500.0,0.00019178,2]
[349527659,1737281433667,-503.06786831,0.00019178,2]
[349527661,1737281433677,-248.03170182,0.00019178,2]
[349527662,1737281433686,-503.09939366,0.00019178,2]
[349527664,1737281433695,-500.0,0.00019178,2]
[349527666,1737281433705,-209.60109978,0.00019178,2]
[349527668,1737281433715,-500.0,0.00019178,2]
[349527669,1737281433724,-400.58162573,0.00019178,2]
[349527671,1737281433734,-501.91875777,0.00019178,2]
[349527673,1737281433743,-500.0,0.00019178,2]
[349527675,1737281433753,-502.33813158,0.00019178,2]
[349527676,1737281433762,-500.0,0.00019178,2]
[349527678,1737281433771,-502.044104,0.00019178,2]
[349527680,1737281433781,-500.64915513,0.00019178,2]
[349527682,1737281433791,-500.0,0.00019178,2]
[349527683,1737281433802,-500.0,0.00019178,2]
[349527685,1737281433813,-500.0,0.00019178,2]
[349527687,1737281433822,-500.0,0.00019178,2]
[349527689,1737281433832,-502.52133062,0.00019178,2]
[349527691,1737281433842,-500.0,0.00019178,2]
[349527692,1737281433851,-500.0,0.00019178,2]
[349527694,1737281433860,-500.0,0.00019178,2]
[349527696,1737281433870,-500.0,0.00019178,2]
[349527698,1737281433880,-500.0,0.00019178,2]
[349527700,1737281433893,-500.0,0.00019178,2]
[349527701,1737281433904,-500.0,0.00019178,2]
[349527703,1737281433914,-500.0,0.00019178,2]
[349527705,1737281433924,-295.60514396,0.00019178,2]
[349527707,1737281433933,-500.0,0.00019178,2]
[349527709,1737281433944,-500.0,0.00019178,2]
[349527710,1737281433955,-500.0,0.00019178,2]
[349527712,1737281433964,-500.0,0.00019178,2]
[349527714,1737281433974,-500.0,0.00019178,2]
[349527716,1737281433983,-500.0,0.00019178,2]
[349527718,1737281433993,-507.84559888,0.00019178,2]
[349527719,1737281434003,-500.0,0.00019178,2]
[349527721,1737281434012,-393.6153362,0.00019178,2]
[349527723,1737281434021,-500.0,0.00019178,2]
[349527725,1737281434031,-504.37118207,0.00019178,2]
[349527727,1737281434040,-500.0,0.00019178,2]
[349527729,1737281434052,-500.0,0.00019178,2]
[349527730,1737281434063,-500.0,0.00019178,2]
[349527732,1737281434074,-500.0,0.00019178,2]
[349527734,1737281434084,-500.0,0.00019178,2]
[349527736,1737281434093,-501.85024189,0.00019178,2]
[349527737,1737281434103,-500.0,0.00019178,2]
[349527739,1737281434113,-500.0,0.00019178,2]
[349527741,1737281434123,-534.84,0.00019178,2]
[349527743,1737281434135,-500.0,0.00019178,2]
[349527745,1737281434145,-529.82059583,0.00019178,2]
[349527747,1737281434155,-500.0,0.00019178,2]
[349527748,1737281434165,-500.0,0.00019178,2]
[349527749,1737281434174,-500.0,0.00019178,2]
[349527750,1737281434183,-500.0,0.00019178,2]
[349527751,1737281434193,-500.0,0.00019178,2]
[349527752,1737281434202,-500.0,0.00019178,2]
[349527753,1737281434212,-500.0,0.00019178,2]
[349527754,1737281434221,-502.1053813,0.00019178,2]
[349527755,1737281434231,-500.0,0.00019178,2]
[349527756,1737281434240,-300.0,0.00019178,2]
[349527757,1737281434249,-504.65957028,0.00019178,2]
[349527758,1737281434258,-501.79842734,0.00019178,2]
[349527759,1737281434267,-500.0,0.00019178,2]
[349527770,1737281434402,-500.0,0.00019178,2]
[349527772,1737281434414,-500.0,0.00019178,2]
[349527774,1737281434425,-500.0,0.00019178,2]
[349527776,1737281434435,-503.56452139,0.00019178,2]
[349527778,1737281434446,-500.0,0.00019178,2]
[349527780,1737281434456,-500.0,0.00019178,2]
[349527782,1737281434466,-510.29806,0.00019178,2]
[349527784,1737281434476,-379.29068874,0.00019178,2]
[349527786,1737281434486,-500.0,0.00019178,2]
[349527788,1737281434495,-500.0,0.00019178,2]
[349527790,1737281434505,-502.34839695,0.00019178,2]
[349527792,1737281434515,-500.0,0.00019178,2]
[349527794,1737281434525,-500.0,0.00019178,2]
[349527796,1737281434536,-500.0,0.00019178,2]
[349527799,1737281434549,-500.0,0.00019178,2]
[349527800,1737281434559,-500.0,0.00019178,2]
[349527802,1737281434568,-500.0,0.00019178,2]
[349527805,1737281434579,-500.0,0.00019178,2]
[349527807,1737281434588,-500.0,0.00019178,2]
[349527808,1737281434597,-500.0,0.00019178,2]
[349527810,1737281434606,-594.60159354,0.00019178,2]
[349527812,1737281434618,-500.0,0.00019178,2]
[349527814,1737281434627,-500.0,0.00019178,2]
[349527816,1737281434640,-506.36564273,0.00019178,2]
[349527818,1737281434649,-512.22598283,0.00019178,2]
[349527820,1737281434659,-165.0613777,0.00019178,2]
[349527824,1737281434682,-478.0186223,0.00019178,2]
[349527826,1737281434692,-500.0,0.00019178,2]
[349527828,1737281434702,-500.0,0.00019178,2]
[349527830,1737281434711,-500.0,0.00019178,2]
[349527832,1737281434721,-500.0,0.00019178,2]
[349527834,1737281434731,-500.0,0.00019178,2]
[349527836,1737281434740,-500.0,0.00019178,2]
[349527838,1737281434750,-500.0,0.00019178,2]
[349527840,1737281434759,-542.23014269,0.00019178,2]
[349527842,1737281434769,-500.0,0.00019178,2]
[349527844,1737281434779,-500.0,0.00019178,2]
[349527846,1737281434788,-500.0,0.00019178,2]
[349527848,1737281434797,-341.94928816,0.00019178,2]
[349527852,1737281434822,-158.05071184,0.00019178,2]
[349527854,1737281434831,-500.0,0.00019178,2]
[349527856,1737281434840,-342.34728816,0.00019178,2]
[349527859,1737281434860,-157.65271184,0.00019178,2]
[349527861,1737281434871,-500.0,0.00019178,2]
[349527862,1737281434881,-503.47456723,0.00019178,2]
[349527863,1737281434896,-500.0,0.00019178,2]
[349527864,1737281434906,-500.0,0.00019178,2]
[349527865,1737281434915,-500.0,0.00019178,2]
[349527866,1737281434925,-500.0,0.00019178,2]
[349527867,1737281434934,-4.37272095,0.00019178,2]
[349527868,1737281434946,-495.62727905,0.00019178,2]
[349527869,1737281434955,-500.0,0.00019178,2]
[349527870,1737281434967,-107.9298557,0.00019178,2]
[349527871,1737281434979,-392.0701443,0.00019178,2]
[349527872,1737281434988,-500.0,0.00019178,2]
[349527873,1737281434999,-500.0,0.00019178,2]
[349527874,1737281435009,-285.3529995,0.00019178,2]
[349527877,1737281435037,-214.6470005,0.00019178,2]
[349527879,1737281435047,-95.41071253,0.00019178,2]
[349527882,1737281435065,-404.58928747,0.00019178,2]
[349527884,1737281435076,-500.0,0.00019178,2]
[349527886,1737281435086,-500.0,0.00019178,2]
[349527888,1737281435097,-500.0,0.00019178,2]
[349527890,1737281435107,-500.0,0.00019178,2]
[349527892,1737281435117,-504.71191748,0.00019178,2]
[349527894,1737281435127,-500.0,0.00019178,2]
[349527896,1737281435145,-500.0,0.00019178,2]
[349527898,1737281435155,-500.0,0.00019178,2]
[349527900,1737281435164,-500.0,0.00019178,2]
[349527902,1737281435174,-500.0,0.00019178,2]
[349527904,1737281435184,-500.0,0.00019178,2]
[349527906,1737281435194,-500.0,0.00019178,2]
[349527908,1737281435204,-500.0,0.00019178,2]
[349527910,1737281435214,-500.0,0.00019178,2]
[349527912,1737281435223,-500.0,0.00019178,2]
[349527914,1737281435233,-500.0,0.00019178,2]
[349527916,1737281435242,-500.0,0.00019178,2]
[349527918,1737281435253,-500.0,0.00019178,2]
[349527919,1737281435263,-499.89382796,0.00019178,2]
[349527920,1737281435273,-500.0,0.00019178,2]
[349527921,1737281435283,-500.0,0.00019178,2]
[349527922,1737281435293,-500.0,0.00019178,2]
[349527923,1737281435304,-527.3423767,0.00019178,2]
[349527924,1737281435313,-500.0,0.00019178,2]
[349527925,1737281435323,-478.81752602,0.00019178,2]
[349527926,1737281435333,-500.0,0.00019178,2]
[349527927,1737281435342,-500.0,0.00019178,2]
[349527928,1737281435351,-500.0,0.00019178,2]
[349527929,1737281435361,-299.37082497,0.00019178,2]
[349527930,1737281435447,-200.62917503,0.00019178,2]
[349527931,1737281435457,-81.78974321,0.00019178,2]
[349527932,1737281435472,-418.21025679,0.00019178,2]
[349527933,1737281435483,-500.0,0.00019178,2]
[349527934,1737281435493,-500.0,0.00019178,2]
[349527935,1737281435503,-500.0,0.00019178,2]
[349527936,1737281435513,-500.0,0.00019178,2]
[349527937,1737281435524,-504.42005738,0.00019178,2]
[349527938,1737281435538,-500.0,0.00019178,2]
[349527939,1737281435548,-500.0,0.00019178,2]
[349527940,1737281435559,-513.73971548,0.00019178,2]
[349527941,1737281435570,-500.0,0.00019178,2]
[349527942,1737281435582,-502.75531911,0.00019178,2]
[349527943,1737281435593,-501.98230977,0.00019178,2]
[349527944,1737281435604,-504.02554468,0.00019178,2]
[349527945,1737281435615,-500.0,0.00019178,2]
[349527946,1737281435628,-500.0,0.00019178,2]
[349527947,1737281435645,-500.0,0.00019178,2]
[349527948,1737281435656,-507.00984509,0.00019178,2]
[349527949,1737281435667,-500.0,0.00019178,2]
[349527950,1737281435678,-500.0,0.00019178,2]
[349527951,1737281435688,-500.0,0.00019178,2]
[349527952,1737281435699,-500.0,0.00019178,2]
[349527953,1737281435711,-500.0,0.00019178,2]
[349527954,1737281435721,-500.0,0.00019178,2]
[349527955,1737281435732,-500.0,0.00019178,2]
[349527956,1737281435743,-500.0,0.00019178,2]
[349527957,1737281435754,-565.03,0.00019178,2]
[349527958,1737281435764,-500.0,0.00019178,2]
[349527959,1737281435774,-500.0,0.00019178,2]
[349527960,1737281435784,-620.42512222,0.00019178,2]
[349527961,1737281435794,-507.63010863,0.00019178,2]
[349527962,1737281435804,-500.0,0.00019178,2]
[349527963,1737281435815,-500.0,0.00019178,2]
[349527964,1737281435826,-500.0,0.00019178,2]
[349527965,1737281435835,-693.970146,0.00019178,2]
[349527966,1737281435846,-501.83437835,0.00019178,2]
[349527967,1737281435856,-252.45510089,0.00019178,2]
[349527968,1737281435865,-500.0,0.00019178,2]
[349527969,1737281435876,-159.534965,0.00019178,2]
[349527970,1737281435885,-500.0,0.00019178,2]
[349527971,1737281435899,-500.0,0.00019178,2]
[349527972,1737281435910,-1509.18,0.00019178,2]
[349527973,1737281435920,-506.90256698,0.00019178,2]
[349527974,1737281435930,-158.892989,0.00019178,2]
[349527975,1737281435940,-500.0,0.00019178,2]
[349527976,1737281435949,-500.0,0.00019178,2]
[349527977,1737281435960,-500.0,0.00019178,2]
[349527978,1737281435970,-500.0,0.00019178,2]
[349527979,1737281435980,-500.0,0.00019178,2]
[349527980,1737281435990,-500.0,0.00019178,2]
[349527981,1737281436000,-2560.2,0.00019178,2]
[349527982,1737281436009,-502.70415163,0.00019178,2]
[349527983,1737281436019,-500.0,0.00019178,2]
[349527984,1737281436029,-500.0,0.00019178,2]
[349527985,1737281436039,-500.0,0.00019178,2]
[349527986,1737281436049,-1179.248694,0.00019178,2]
[349527987,1737281436059,-500.0,0.00019178,2]
[349527988,1737281436069,-500.0,0.00019178,2]
[349527989,1737281436079,-500.0,0.00019178,2]
[349527990,1737281436090,-500.0,0.00019178,2]
[349527991,1737281436100,-518.72389536,0.00019178,2]
[349527992,1737281436110,-500.0,0.00019178,2]
[349527993,1737281436120,-825.88,0.00019178,2]
[349527994,1737281436130,-620.99766113,0.00019178,2]
[349527995,1737281436147,-500.0,0.00019178,2]
[349527996,1737281436157,-500.0,0.00019178,2]
[349527997,1737281436291,-500.0,0.00019178,2]
[349527998,1737281436302,-500.0,0.00019178,2]
[349527999,1737281436312,-772.6,0.00019178,2]
[349528000,1737281436322,-502.69681436,0.00019178,2]
[349528001,1737281436332,-500.0,0.00019178,2]
[349528002,1737281436342,-500.0,0.00019178,2]
[349528003,1737281436352,-500.0,0.00019178,2]
[349528004,1737281436362,-1154.09,0.00019178,2]
[349528005,1737281436371,-738.98,0.00019178,2]
[349528006,1737281436382,-500.0,0.00019178,2]
[349528007,1737281436395,-500.0,0.00019178,2]
[349528008,1737281436404,-500.0,0.00019178,2]
[349528009,1737281436414,-508.43865897,0.00019178,2]
[349528010,1737281436424,-500.0,0.00019178,2]
[349528011,1737281436433,-500.0,0.00019178,2]
[349528012,1737281436443,-500.0,0.00019178,2]
[349528013,1737281436453,-500.0,0.00019178,2]
[349528014,1737281436463,-500.0,0.00019178,2]
[349528015,1737281436474,-2937.65,0.00019178,2]
[349528016,1737281436484,-500.0,0.00019178,2]
[349528017,1737281436493,-520.7,0.00019178,2]
[349528018,1737281436504,-500.0,0.00019178,2]
[349528019,1737281436515,-500.0,0.00019178,2]
[349528020,1737281436525,-512.58854497,0.00019178,2]
[349528021,1737281436537,-500.0,0.00019178,2]
[349528022,1737281436547,-500.0,0.00019178,2]
[349528023,1737281436559,-157.30161,0.00019178,2]
[349528024,1737281436571,-577.50534625,0.00019178,2]
[349528025,1737281436583,-605.84,0.00019178,2]
[349528026,1737281436594,-500.0,0.00019178,2]
[349528027,1737281436604,-500.0,0.00019178,2]
[349528028,1737281436614,-500.0,0.00019178,2]
[349528029,1737281436624,-500.0,0.00019178,2]
[349528030,1737281436635,-501.60815958,0.00019178,2]
[349528031,1737281436647,-500.0,0.00019178,2]
[349528032,1737281436659,-500.0,0.00019178,2]
[349528033,1737281436669,-637.03,0.00019178,2]
[349528034,1737281436678,-500.0,0.00019178,2]
[349528035,1737281436688,-502.76378518,0.00019178,2]
[349528036,1737281436698,-500.0,0.00019178,2]
[349528037,1737281436715,-500.0,0.00019178,2]
[349528038,1737281436732,-709.52,0.00019178,2]
[349528039,1737281436742,-517.72169376,0.00019178,2]
[349528040,1737281436751,-500.0,0.00019178,2]
[349528041,1737281436761,-500.0,0.00019178,2]
[349528042,1737281436771,-500.0,0.00019178,2]
[349528043,1737281436780,-500.0,0.00019178,2]
[349528044,1737281436791,-156.504977,0.00019178,2]
[349528045,1737281436801,-1925.5,0.00019178,2]
[349528046,1737281436811,-500.0,0.00019178,2]
[349528047,1737281436821,-521.4,0.00019178,2]
[349528048,1737281436831,-506.01533578,0.00019178,2]
[349528049,1737281436841,-500.0,0.00019178,2]
[349528050,1737281436851,-420.29224666,0.00019178,2]
[349528051,1737281436906,-79.70775334,0.00019178,2]
[349528052,1737281436915,-321.45645395,0.00019178,2]
[349528056,1737281439156,-1105.0,0.00012927,2]
[349528057,1737281439167,-1105.0,0.00015927,2]
[349528060,1737281439177,-178.54354605,0.00019178,2]
[349528061,1737281439186,-500.0,0.00019178,2]
[349528062,1737281439196,-503.39203139,0.00019178,2]
[349528063,1737281439205,-507.86516067,0.00019178,2]
[349528064,1737281439215,-500.0,0.00019178,2]
[349528065,1737281439225,-500.0,0.00019178,2]
[349528066,1737281439234,-509.36,0.00019178,2]
[349528067,1737281439243,-500.0,0.00019178,2]
[349528068,1737281439253,-500.97,0.00019178,2]
[349528069,1737281439263,-500.0,0.00019178,2]
[349528070,1737281439272,-500.0,0.00019178,2]
[349528071,1737281439283,-500.0,0.00019178,2]
[349528072,1737281439292,-500.0,0.00019178,2]
[349528073,1737281439302,-500.0,0.00019178,2]
[349528074,1737281439312,-500.0,0.00019178,2]
[349528075,1737281439322,-500.0,0.00019178,2]
[349528076,1737281439331,-500.0,0.00019178,2]
[349528077,1737281439343,-500.0,0.00019178,2]
[349528079,1737281439353,-500.0,0.00019178,2]
[349528080,1737281439363,-500.0,0.00019178,2]
[349528081,1737281439372,-500.0,0.00019178,2]
[349528082,1737281439382,-500.0,0.00019178,2]
[349528083,1737281439394,-500.0,0.00019178,2]
[349528084,1737281439404,-500.0,0.00019178,2]
[349528085,1737281439414,-500.0,0.00019178,2]
[349528086,1737281439424,-500.0,0.00019178,2]
[349528088,1737281439433,-500.0,0.00019178,2]
[349528089,1737281439444,-500.0,0.00019178,2]
[349528090,1737281439454,-500.0,0.00019178,2]
[349528091,1737281439464,-500.0,0.00019178,2]
[349528092,1737281439473,-500.0,0.00019178,2]
[349528093,1737281439483,-500.0,0.00019178,2]
[349528094,1737281439493,-500.0,0.00019178,2]
[349528095,1737281439502,-500.0,0.00019178,2]
[349528096,1737281439513,-500.0,0.00019178,2]
[349528097,1737281439523,-509.84404933,0.00019178,2]
[349528098,1737281439533,-500.0,0.00019178,2]
[349528099,1737281439543,-500.0,0.00019178,2]
[349528100,1737281439552,-500.0,0.00019178,2]
[349528101,1737281439565,-511.08,0.00019178,2]
[349528102,1737281439576,-500.0,0.00019178,2]
[349528103,1737281439586,-575.86,0.00019178,2]
[349528104,1737281439595,-500.0,0.00019178,2]
[349528105,1737281439605,-786.1,0.00019178,2]
[349528106,1737281439614,-500.0,0.00019178,2]
[349528107,1737281439624,-500.0,0.00019178,2]
[349528108,1737281439636,-500.0,0.00019178,2]
[349528109,1737281439648,-500.0,0.00019178,2]
[349528110,1737281439658,-500.0,0.00019178,2]
[349528111,1737281439668,-500.0,0.00019178,2]
[349528112,1737281439677,-500.0,0.00019178,2]
[349528113,1737281439687,-500.0,0.00019178,2]
[349528114,1737281439697,-500.0,0.00019178,2]
[349528115,1737281439707,-500.0,0.00019178,2]
[349528116,1737281439718,-500.0,0.00019178,2]
[349528117,1737281439738,-500.0,0.00019178,2]
[349528118,1737281439748,-500.0,0.00019178,2]
[349528119,1737281439758,-154.938432,0.00019178,2]
[349528120,1737281439767,-500.0,0.00019178,2]
[349528121,1737281439776,-500.0,0.00019178,2]
[349528122,1737281439785,-500.0,0.00019178,2]
[349528123,1737281439795,-500.0,0.00019178,2]
[349528124,1737281439804,-500.0,0.00019178,2]
[349528125,1737281439813,-570.29,0.00019178,2]
[349528126,1737281439823,-500.0,0.00019178,2]
[349528127,1737281439833,-500.0,0.00019178,2]
[349528128,1737281439842,-500.0,0.00019178,2]
[349528129,1737281439852,-500.0,0.00019178,2]
[349528130,1737281439861,-725.49,0.00019178,2]
[349528131,1737281439871,-520.09361497,0.00019178,2]
[349528132,1737281439881,-500.0,0.00019178,2]
[349528133,1737281439896,-500.0,0.00019178,2]
[349528134,1737281439905,-500.0,0.00019178,2]
[349528135,1737281439915,-500.0,0.00019178,2]
[349528136,1737281439924,-500.0,0.00019178,2]
[349528137,1737281439933,-500.0,0.00019178,2]
[349528138,1737281439943,-500.0,0.00019178,2]
[349528139,1737281439952,-500.0,0.00019178,2]
[349528140,1737281439961,-500.0,0.00019178,2]
[349528141,1737281439971,-500.0,0.00019178,2]
[349528142,1737281439980,-500.0,0.00019178,2]
[349528143,1737281439990,-500.0,0.00019178,2]
[349528144,1737281439999,-500.0,0.00019178,2]
[349528145,1737281440009,-500.0,0.00019178,2]
[349528146,1737281440018,-500.0,0.00019178,2]
[349528147,1737281440028,-500.0,0.00019178,2]
[349528148,1737281440037,-589.49,0.00019178,2]
[349528149,1737281440047,-500.0,0.00019178,2]
[349528150,1737281440056,-500.0,0.00019178,2]
[349528151,1737281440065,-500.0,0.00019178,2]
[349528152,1737281440075,-500.0,0.00019178,2]
[349528153,1737281440084,-754.87,0.00019178,2]
[349528154,1737281440094,-500.0,0.00019178,2]
[349528155,1737281440103,-500.0,0.00019178,2]
[349528156,1737281440113,-500.0,0.00019178,2]
[349528157,1737281440123,-500.0,0.00019178,2]
[349528159,1737281440132,-500.0,0.00019178,2]
[349528160,1737281440142,-500.0,0.00019178,2]
[349528161,1737281440152,-500.0,0.00019178,2]
[349528162,1737281440162,-502.56509386,0.00019178,2]
[349528163,1737281440172,-505.29757404,0.00019178,2]
[349528164,1737281440181,-500.0,0.00019178,2]
[349528165,1737281440191,-500.0,0.00019178,2]
[349528166,1737281440201,-500.0,0.00019178,2]
[349528167,1737281440210,-687.9,0.00019178,2]
[349528168,1737281440220,-977.56,0.00019178,2]
[349528169,1737281440229,-605.19131323,0.00019178,2]
[349528170,1737281440239,-500.0,0.00019178,2]
[349528171,1737281440248,-500.0,0.00019178,2]
[349528172,1737281440258,-500.0,0.00019178,2]
[349528173,1737281440267,-500.0,0.00019178,2]
[349528174,1737281440277,-500.0,0.00019178,2]
[349528175,1737281440287,-555.17,0.00019178,2]
[349528176,1737281440298,-500.0,0.00019178,2]
[349528177,1737281440307,-500.0,0.00019178,2]
[349528178,1737281440316,-500.0,0.00019178,2]
[349528179,1737281440326,-500.0,0.00019178,2]
[349528180,1737281440335,-500.0,0.00019178,2]
[349528181,1737281440344,-500.0,0.00019178,2]
[349528182,1737281440353,-183.530103,0.00019178,2]
[349528183,1737281440362,-510.06559019,0.00019178,2]
[349528184,1737281440372,-758.65,0.00019178,2]
[349528185,1737281440381,-500.0,0.00019178,7]
[349528186,1737281440391,-500.0,0.00019178,2]
[349528187,1737281440403,-758.65,0.00019178,2]
[349528188,1737281440413,-500.0,0.00019178,2]
[349528189,1737281440422,-758.65,0.00019178,2]
[349528190,1737281440431,-758.65,0.00019178,2]
[349528191,1737281440440,-758.65,0.00019178,2]
[349528192,1737281440450,-758.65,0.00019178,2]
[349528193,1737281440459,-500.0,0.00019178,2]
[349528194,1737281440469,-758.65,0.00019178,2]
[349528195,1737281440479,-758.65,0.00019178,2]
[349528196,1737281440488,-758.65,0.00019178,2]
[349528197,1737281440498,-758.65,0.00019178,2]
[349528198,1737281440508,-500.0,0.00019178,2]
[349528199,1737281440517,-183.530103,0.00019178,2]
[349528200,1737281440526,-758.65,0.00019178,2]
[349528201,1737281440538,-500.0,0.00019178,2]
[349528202,1737281440549,-758.65,0.00019178,2]
[349528203,1737281440558,-745.07,0.00019178,2]
[349528204,1737281440567,-758.65,0.00019178,2]
[349528205,1737281440576,-758.65,0.00019178,2]
[349528206,1737281440586,-500.0,0.00019178,2]
[349528207,1737281440596,-194.84976122,0.00019178,2]